[Event "Grand Prix Romania 1st Stage 2024"]
[Site "Bucuresti"]
[Date "2024.03.23"]
[Round "3.14"]
[White "Bernadskiy, Vitaliy"]
[Black "Nedelcu, Teodor-Cosmin"]
[Result "0-1"]
[ECO "B40"]
[WhiteElo "2573"]
[BlackElo "2306"]
[Annotator "RC"]
[PlyCount "151"]
[EventDate "2024.03.20"]
[EventType "swiss"]
[EventCountry "ROU"]
[SourceTitle "playchess.com"]
[Source "ChessBase"]
[SourceQuality "1"]
[TimeControl "900+5"]

1. e4 {[%emt 0:00:01]} c5 {[%emt 0:00:01]} 2. Nf3 {[%emt 0:00:02]} e6 {[%emt 0:00:01]} 3. b3 {[%emt 0:00:02]} Nc6 {[%emt 0:00:02]} 4. Bb2 {[%emt 0:00:03]} d5 {[%emt 0:00:02]} 5. exd5 {[%emt 0:00:30]} exd5 {[%emt 0:00:02]} 6. Bb5 {[%emt 0:00:02]} Nf6 {[%emt 0:00:02]} 7. O-O {[%emt 0:00:48]} Be7 {[%emt 0:00:08]} 8. Ne5 {[%emt 0:00:13]} Qc7 {[%emt 0:00:12]} 9. d4 {[%emt 0:01:35]} O-O {[%emt 0:00:07]} 10. Bxc6 {[%emt 0:00:41]} bxc6 {[%emt 0:00:03]} 11. dxc5 {[%emt 0:00:05]} Bxc5 {[%emt 0:00:10]} 12. Nd2 {[%emt 0:00:08]} Re8 {[%emt 0:00:42]} 13. Ndf3 {[%emt 0:00:30]} Ne4 {[%emt 0:00:26]} 14. c4 {[%emt 0:00:31]} dxc4 {[%emt 0:00:43]} 15. Qc2 {[%emt 0:00:33]} c3 {[%emt 0:01:14]} 16. Bxc3 {[%emt 0:00:02]} Bf5 {[%emt 0:00:04]} 17. Bb2 {[%emt 0:02:51]} Rad8 {[%emt 0:00:42]} 18. Rae1 {[%emt 0:00:10]} f6 {[%emt 0:00:49]} 19. Qc4+ {[%emt 0:01:33]} Rd5 {[%emt 0:00:19]} 20. Nd3 {[%emt 0:00:21]} Bf8 {[%emt 0:00:03]} 21. Nb4 {[%emt 0:00:28]} Bxb4 {[%emt 0:01:09]} 22. Qxb4 {[%emt 0:00:01]} Qf7 {[%emt 0:01:31]} 23. Nh4 {[%emt 0:00:59]} Rb5 {[%emt 0:01:53]} 24. Qd4 {[%emt 0:00:35]} Rd5 {[%emt 0:00:03]} 25. Qb4 {[%emt 0:00:27]} Rb5 {[%emt 0:00:03]} 26. Qd4 {[%emt 0:02:24]} Rd5 {[%emt 0:00:03]} 27. Qe3 {[%emt 0:00:03]} Nd6 {[%emt 0:02:24]} 28. Qc1 {[%emt 0:00:02]} Qd7 {[%emt 0:00:58]} 29. Rxe8+ {[%emt 0:00:05]} Nxe8 {[%emt 0:00:09]} 30. Nxf5 {[%emt 0:00:09]} Rxf5 {[%emt 0:00:01]} 31. Re1 {[%emt 0:00:01]} Nc7 {[%emt 0:00:19]} 32. Qe3 {[%emt 0:00:22]} h5 {[%emt 0:01:26]} 33. h3 {[%emt 0:00:10]} a5 {[%emt 0:00:29]} 34. Qg3 {[%emt 0:00:06]} Kh7 {[%emt 0:00:54]} 35. Bc3 {[%emt 0:00:15]} Rg5 {[%emt 0:00:11]} 36. Qf3 {[%emt 0:00:06]} Nd5 {[%emt 0:00:33]} 37. Bxa5 {[%emt 0:00:08]} Rf5 {[%emt 0:00:04]} 38. Qd3 {[%emt 0:00:09]} g6 {[%emt 0:00:01]} 39. Bd2 {[%emt 0:00:23]} Qa7 {[%emt 0:00:01]} 40. Re2 {[%emt 0:00:37]} Qxa2 {[%emt 0:00:02]} 41. g4 {[%emt 0:00:11]} hxg4 {[%emt 0:00:11]} 42. hxg4 {[%emt 0:00:01]} Re5 {[%emt 0:00:10]} 43. Rxe5 {[%emt 0:00:06]} fxe5 {[%emt 0:00:01]} 44. Qh3+ {[%emt 0:00:03]} Kg8 {[%emt 0:00:01]} 45. Qd3 {[%emt 0:00:04]} Kg7 {[%emt 0:00:05]} 46. b4 {[%emt 0:00:01]} Qa1+ {[%emt 0:00:07]} 47. Kg2 {[%emt 0:00:01]} Qb2 {[%emt 0:00:08]} 48. g5 {[%emt 0:00:09]} e4 {[%emt 0:00:07]} 49. Qxe4 {[%emt 0:00:17]} Qxd2 {[%emt 0:00:01]} 50. Qe5+ {[%emt 0:00:01]} Kf7 {[%emt 0:00:05]} 51. Qg3 {[%emt 0:00:07]} Qxb4 {[%emt 0:00:05]} 52. Qh2 {[%emt 0:00:06]} Qg4+ {[%emt 0:00:02]} 53. Kf1 {[%emt 0:00:00]} Qxg5 {[%emt 0:00:12]} 54. Qh7+ {[%emt 0:00:02]} Ke6 {[%emt 0:00:02]} 55. Qg8+ {[%emt 0:00:01]} Kd7 {[%emt 0:00:04]} 56. Qg7+ {[%emt 0:00:04]} Ne7 {[%emt 0:00:04]} 57. Qd4+ {[%emt 0:00:02]} Qd5 {[%emt 0:00:01]} 58. Qa7+ {[%emt 0:00:01]} Ke6 {[%emt 0:00:08]} 59. Qe3+ {[%emt 0:00:01]} Qe5 {[%emt 0:00:01]} 60. Qb3+ {[%emt 0:00:03]} Nd5 {[%emt 0:00:04]} 61. Qh3+ {[%emt 0:00:02]} Qf5 {[%emt 0:00:01]} 62. Qh8 {[%emt 0:00:02]} Qd3+ {[%emt 0:00:03]} 63. Kg1 {[%emt 0:00:02]} Qd1+ {[%emt 0:00:06]} 64. Kg2 {[%emt 0:00:01]} Nf4+ {[%emt 0:00:03]} 65. Kg3 {[%emt 0:00:01]} Nh5+ {[%emt 0:00:07]} 66. Kh4 {[%emt 0:00:06]} Nf6 {[%emt 0:00:15]} 67. Qc8+ {[%emt 0:00:23]} Ke7 {[%emt 0:00:11]} 68. Qc7+ {[%emt 0:00:25]} Qd7 {[%emt 0:00:04]} 69. Qe5+ {[%emt 0:00:01]} Kf7 {[%emt 0:00:01]} 70. f3 {[%emt 0:00:05]} Qe7 {[%emt 0:00:05]} 71. Qa1 {[%emt 0:00:06]} Nd5+ {[%emt 0:00:08]} 72. Kh3 {[%emt 0:00:03]} Qe6+ {[%emt 0:00:07]} 73. Kg3 {[%emt 0:00:02]} Qd6+ {[%emt 0:00:03]} 74. Kh3 {[%emt 0:00:02]} Qf4 {[%emt 0:00:06]} 75. Qa3 {[%emt 0:00:14]} Qg5 {[%emt 0:00:05]} 76. Kh2 {[%emt 0:00:18]} 0-1

[Event "Grand Prix Romania 1st Stage 2024"]
[Site "Bucuresti"]
[Date "2024.03.23"]
[Round "3.15"]
[White "Sgircea, Silvia-Raluca"]
[Black "Bologan, Victor"]
[Result "0-1"]
[ECO "A33"]
[WhiteElo "2224"]
[BlackElo "2594"]
[Annotator "TA"]
[PlyCount "100"]
[EventDate "2024.03.20"]
[EventType "swiss"]
[EventCountry "ROU"]
[SourceTitle "playchess.com"]
[Source "ChessBase"]
[SourceQuality "1"]
[TimeControl "900+5"]

{[%evp 13,100,15,41,15,16,-2,5,24,35,15,34,35,20,24,30,27,13,14,11,0,0,-8,10,7,13,18,33,-56,0,-3,0,0,0,0,25,14,99,-52,51,57,52,55,56,50,57,0,57,54,46,0,0,0,2,-180,-166,-179,-182,-327,-321,-678,-647,-673,-16,-14,0,0,0,0,0,0,72,0,0,0,0,0,0,-33,-18,-28,-23,-710,-324,-720,-711,-707,-694,-733,-732]} 1. Nf3 {[%emt 0:00:03]} c5 {[%emt 0:00:05]} 2. c4 {[%emt 0:00:03]} Nc6 {[%emt 0:00:03]} 3. d4 {[%emt 0:00:04]} cxd4 {[%emt 0:00:02]} 4. Nxd4 {[%emt 0:00:02]} e6 {[%emt 0:00:03]} 5. a3 {[%emt 0:00:37]} Bc5 {[%emt 0:00:25]} 6. Nb3 {[%emt 0:00:05]} Be7 {[%emt 0:00:02]} 7. Nc3 {[%emt 0:00:05]} Nf6 {[%emt 0:00:10]} 8. g3 {[%emt 0:00:09]} O-O {[%emt 0:01:09]} 9. Bg2 {[%emt 0:00:02] Against d5} b6 {[%emt 0:00:12]} 10. O-O {[%emt 0:00:59] The position is equal.} Bb7 {[%emt 0:00:55]} 11. Bf4 {[%emt 0:00:43]} Na5 {[%emt 0:00:55]} 12. Nxa5 {[%emt 0:00:18]} Bxg2 {[%emt 0:00:03]} 13. Kxg2 {[%emt 0:00:04]} bxa5 {[%emt 0:00:01]} 14. Qa4 {[%emt 0:01:25]} Qc8 {[%emt 0:01:42]} 15. Rab1 {[%emt 0:02:25][%cal Of1c1]} Qb7+ {[%emt 0:00:54]} 16. Kg1 {[%emt 0:00:02]} Rfc8 {[%emt 0:00:03]} 17. Rfc1 {[%emt 0:00:07]} Rc5 {[%emt 0:00:18]} 18. Be3 {[%emt 0:04:04]} Rh5 {[%emt 0:00:09]} 19. f3 {[%emt 0:00:02] Prevents Ng4} Rc8 {[%emt 0:00:08]} 20. Nb5 {[%emt 0:01:23]} (20. Nd1 $14) 20... a6 {[%emt 0:01:08]} (20... Re5 $1 $15 21. Kf2 a6) 21. Nd4 $11 {[%emt 0:00:01]} e5 {[%emt 0:03:23][%cal Be6e5,Be5e4][%mdl 32]} 22. Nb3 {[%emt 0:00:06]} e4 {[%emt 0:00:13]} 23. Nxa5 {[%emt 0:00:35]} Qa8 {[%emt 0:00:06]} 24. Rf1 {[%emt 0:00:30]} d5 {[%emt 0:01:08]} (24... Re8 $11 {keeps the balance.} 25. Bd4 exf3 26. exf3 Rf5) 25. cxd5 $2 {[%emt 0:00:40]} (25. Rbc1 $16) 25... Nxd5 {[%emt 0:00:09]} (25... Qxd5 $15 26. b4 Qe6) 26. Bd4 $14 {[%emt 0:00:08]} (26. Qxe4 $2 Nxe3 27. Qxe7 (27. Qxe3 $2 Bc5 $19) 27... Nxf1 28. Kxf1 Rxa5 $19) 26... exf3 {[%emt 0:01:19]} 27. exf3 {[%emt 0:00:01]} Bf6 {[%emt 0:00:09]} 28. Rbc1 {[%emt 0:00:26]} h6 {[%emt 0:00:29]} 29. Bxf6 {[%emt 0:01:02]} (29. Nb3 $14) 29... Nxf6 {[%emt 0:00:04]} ({Black should play} 29... Rxc1 $1 $11 30. Rxc1 Nxf6) 30. Nc6 {[%emt 0:00:11] [#] Black must now prevent Ne7+.} Kh8 {[%emt 0:00:15]} 31. b4 {[%emt 0:00:35]} (31. Rf2 $14) 31... Rb5 $11 {[%emt 0:00:17]} 32. Nd4 {[%emt 0:00:05]} Rd5 {[%emt 0:00:26]} 33. Ne2 {[%emt 0:00:29]} (33. Rxc8+ $11 {and White is okay.} Qxc8 34. Qc2) 33... Rd2 $19 {[%emt 0:00:13]} 34. Rxc8+ {[%emt 0:00:10]} Qxc8 {[%emt 0:00:03]} 35. Rf2 {[%emt 0:00:06]} (35. Nf4 {is a better defense.} g5 36. Qb3 (36. Ng2 $2 Qe6 $19) 36... gxf4 37. Qxf7) 35... Qc4 {[%emt 0:00:23]} 36. Nf4 $2 {[%emt 0:00:11]} (36. Nc3 Qxc3 37. Rxd2 Qxd2 38. Qxa6) 36... Qd4 {[%emt 0:00:02]} 37. Nh3 {[%emt 0:00:02] [#]} Rd1+ $2 {[%emt 0:00:35]} (37... Kh7 $1 $19 {aiming for ...Nd5.} 38. Qxa6 Nd5) 38. Kg2 $11 {[%emt 0:00:01]} Nd5 {[%emt 0:00:01][%cal Bf6d5,Bd5e3,Be3c4][%mdl 32]} 39. Qe8+ {[%emt 0:00:02]} Kh7 {[%emt 0:00:01] And now ...Ne3+ would win.} 40. Qe4+ {[%emt 0:00:07]} Qxe4 41. fxe4 {[%emt 0:00:01][%mdl 4096] Endgame. KRN-KRN} Ne3+ {[%emt 0:00:04]} 42. Kf3 {[%emt 0:00:01]} Nc4 {[%emt 0:00:01]} 43. Ra2 {[%emt 0:00:03]} Rd3+ {[%emt 0:00:07]} 44. Kf4 {[%emt 0:00:04]} g5+ {[%emt 0:00:11]} 45. Kg4 {[%emt 0:00:02]} Kg6 {[%emt 0:00:15][%cal Rc4e5][%mdl 1024] Black has compensation.} ({Much weaker is} 45... Nxa3 46. Kh5 Nc4 47. Rxa6 $11) 46. Nf2 {[%emt 0:00:00]} Rc3 {[%emt 0:00:05] ...h5+ is the strong threat.} (46... Rxa3 47. Rxa3 Nxa3 48. Kf3 $11) 47. a4 $2 {[%emt 0:00:10][%mdl 8192]} (47. Kh3 $11) 47... h5+ $19 {[%emt 0:00:02]} 48. Kh3 {[%emt 0:00:01]} Ne3 {[%emt 0:00:07] ( -> ...g4+). Black is clearly winning.} 49. g4 {[%emt 0:00:05]} Nd5+ {[%emt 0:00:13]} 50. Kg2 {[%emt 0:00:02]} Nf4+ {[%emt 0:00:04] Weighted Error Value: White=0.53/Black=0.28 (precise) .  Loses game:     	White=2     	---        Mistake:       	White=6     	Black=4      Inaccurate:     	White=3     	---        OK:         	White=11    	Black=16     Best:        	White=3     	Black=4} ({Less strong is} 50... Nxb4 51. gxh5+ Kxh5 52. Rd2 $15) 0-1

[Event "Grand Prix Romania 1st Stage 2024"]
[Site "Bucuresti"]
[Date "2024.03.23"]
[Round "3.16"]
[White "Kozak, Adam"]
[Black "Vrencian, Lehel"]
[Result "1-0"]
[ECO "A11"]
[WhiteElo "2607"]
[BlackElo "2156"]
[Annotator "TA"]
[PlyCount "119"]
[EventDate "2024.03.20"]
[EventType "swiss"]
[EventCountry "ROU"]
[SourceTitle "playchess.com"]
[Source "ChessBase"]
[SourceQuality "1"]
[TimeControl "900+5"]

{[%evp 12,119,0,0,9,16,10,8,7,-7,0,0,0,-11,19,12,7,16,60,19,20,14,16,0,5,3,35,29,79,64,118,47,84,62,95,85,82,50,43,50,23,35,103,41,79,60,100,104,119,110,104,86,75,0,0,0,0,0,0,0,28,0,8,0,0,0,0,0,8,8,29,8,8,8,8,8,8,8,8,8,16,16,149,149,29955,152,576,567,320,314,29973,29974,29974,29974,29973,29971,29976,29977,29974,29969,29971,29966,29975,29972,29982,29983,29984,29985,29985,29986]} 1. Nf3 {[%emt 0:00:04]} d5 {[%emt 0:01:13]} 2. g3 {[%emt 0:00:08]} Nf6 {[%emt 0:00:07]} 3. Bg2 {[%emt 0:00:06]} c6 {[%emt 0:00:01]} 4. O-O {[%emt 0:00:04]} Bf5 {[%emt 0:00:02]} 5. d3 {[%emt 0:00:12]} e6 {[%emt 0:00:03]} 6. c4 {[%emt 0:00:36]} dxc4 {[%emt 0:00:40]} 7. dxc4 {[%emt 0:00:03]} Qxd1 {[%emt 0:00:01] A11: English Opening: 1...c6.} 8. Rxd1 {[%emt 0:00:02]} h6 {[%emt 0:00:02]} 9. b3 $5 {[%emt 0:00:17][%mdl 4] Leaves trodden paths.} Bc2 {[%emt 0:00:18]} 10. Rf1 {[%emt 0:00:16]} Nbd7 {[%emt 0:00:10]} 11. Nc3 {[%emt 0:00:06]} Bb4 $146 {[%emt 0:01:25]} ({Predecessor:} 11... Bh7 12. Bb2 Be7 13. Rad1 O-O 14. Ne1 Rfd8 15. Nd3 Kf8 16. Na4 Rac8 17. Bd4 b5 {1-0 Berczes,D (2460)-Bhakti,K (2388) Budapest FS03 GM 2022 (1)}) 12. Bb2 {[%emt 0:00:16]} a5 {[%emt 0:00:09]} 13. Na4 {[%emt 0:04:18][%cal Oc4c5]} Be7 {[%emt 0:00:27]} 14. Rac1 {[%emt 0:01:00]} Bh7 {[%emt 0:00:20]} 15. Rfd1 {[%emt 0:00:56]} O-O {[%emt 0:00:13]} 16. c5 {[%emt 0:00:15]} Rfd8 {[%emt 0:02:23]} 17. Nd2 {[%emt 0:01:46]} Nd5 {[%emt 0:01:34]} 18. a3 {[%emt 0:00:25]} Nc7 {[%emt 0:02:10]} 19. Nc4 {[%emt 0:04:45]} Na6 {[%emt 0:03:07]} (19... Nxc5 $11 {keeps the balance.} 20. Rxd8+ Rxd8 21. Nxc5 (21. Nxa5 Nxa4 22. bxa4 Rd2 $11) 21... Bxc5) 20. Nxa5 {[%emt 0:00:51]} Naxc5 {[%emt 0:00:49]} (20... Ndxc5 $14 21. Nb6 Rxd1+ 22. Rxd1 Rd8) 21. Nxc5 {[%emt 0:00:12]} (21. Nxb7 $1 $16 Nxb7 22. Bxc6 (22. Rxc6 $2 Ndc5 $19)) 21... Nxc5 $14 {[%emt 0:00:18]} 22. b4 $1 {[%emt 0:00:01] Hoping for Rxd8+.} Na4 {[%emt 0:00:26]} 23. Be5 {[%emt 0:00:02]} f6 {[%emt 0:00:15] aiming for ...Rxd1+.} 24. Bc7 {[%emt 0:00:16]} Rxd1+ {[%emt 0:00:29]} 25. Rxd1 {[%emt 0:00:00]} Nc3 {[%emt 0:00:04][%csl LRd1,LRe2]} 26. Rd7 {[%emt 0:00:04]} Kf8 {[%emt 0:00:15] [#]} (26... Bf8 $14) 27. Nxb7 {[%emt 0:00:11]} (27. Bb6 $1 $16) 27... Rxa3 {[%emt 0:00:09] Strongly threatening ...Ra1+.} 28. Bxc6 {[%emt 0:00:01]} Ra1+ {[%emt 0:00:09]} (28... Nxe2+ 29. Kf1 Nc3 (29... Bd3 $2 30. Rxd3 Rxd3 31. Kxe2 $18) 30. b5 $16) 29. Kg2 {[%emt 0:00:01] Bd6 is the strong threat.} Be4+ {[%emt 0:00:02]} 30. Bxe4 {[%emt 0:00:02]} Nxe4 {[%emt 0:00:01]} 31. Rd4 {[%emt 0:00:18]} Nc3 {[%emt 0:00:06][%cal Oe6e5]} 32. Bd8 {[%emt 0:00:04]} ({White should try} 32. Bd6 $16) 32... Nxe2 $11 {[%emt 0:00:09]} 33. Bxe7+ Kxe7 {[%emt 0:00:01][%mdl 4096] Endgame. KRN-KRN} 34. Rc4 {[%emt 0:00:05]} Rc1 {[%emt 0:00:05]} 35. Re4 {[%emt 0:00:10]} Nc3 {[%emt 0:00:07]} 36. Rc4 {[%emt 0:00:05]} Ne2 {[%emt 0:00:03]} 37. Rxc1 Nxc1 {[%emt 0:00:01] KN-KN} 38. Nc5 {[%emt 0:00:06] And now b5 would win.} Kd6 {[%emt 0:00:06]} 39. Kf3 {[%emt 0:00:06]} Kd5 {[%emt 0:00:08]} 40. Ke3 {[%emt 0:00:09]} Na2 {[%emt 0:00:01]} 41. Nd3 {[%emt 0:00:00]} Kc4 {[%emt 0:00:05]} 42. Nf4 {[%emt 0:00:02]} e5 {[%emt 0:00:10]} 43. Nh5 {[%emt 0:00:01]} Nxb4 {[%emt 0:00:04]} 44. Nxg7 {[%emt 0:00:03]} Kd5 {[%emt 0:00:06]} 45. Nf5 {[%emt 0:00:17]} Ke6 {[%emt 0:00:09]} 46. g4 {[%emt 0:00:01][%cal Oe3f3] White wants to play Kf3!} Nd5+ {[%emt 0:00:04]} (46... h5 $1 $11 {remains equal.}) 47. Kf3 $16 {[%emt 0:00:05]} Ne7 $2 {[%emt 0:00:07][%mdl 8192] [#]} (47... Nc3 $16) 48. Nxh6 $2 {[%emt 0:00:03]} (48. Nxe7 $1 {mates} Kxe7 49. Ke4 Kf8 50. Kf5 Kf7 51. h3 Ke7 52. Kg6 Ke6 53. h4 (53. Kxh6 e4 $18)) 48... Kd5 $2 {[%emt 0:00:04]} (48... Nd5 $16 {is a better chance.} 49. Nf5 Kf7) 49. h4 $18 {[%emt 0:00:09]} Ng6 {[%emt 0:00:04]} 50. h5 {[%emt 0:00:04]} Ne7 $2 {[%emt 0:00:05]} (50... Nf4 $18 51. Nf5 Nh3) 51. Nf5 {[%emt 0:00:01]} Nc6 {[%emt 0:00:05]} 52. h6 {[%emt 0:00:04]} Nd8 {[%emt 0:00:03]} 53. Kg3 {[%emt 0:00:13]} Ke6 {[%emt 0:00:05]} 54. Kh4 {[%emt 0:00:03]} Nf7 {[%emt 0:00:04]} 55. Ng7+ {[%emt 0:00:07]} Kd5 {[%emt 0:00:09]} 56. Kh5 {[%emt 0:00:01]} Nh8 {[%emt 0:00:03]} 57. h7 {[%emt 0:00:08]} Ke4 {[%emt 0:00:02]} 58. Nf5 {[%emt 0:00:06]} Kf3 {[%emt 0:00:02]} 59. Kh6 {[%emt 0:00:04]} Kxg4 {[%emt 0:00:11]} 60. Kg7 {[%emt 0:00:01][%csl LRf6,LRh8]} 1-0

[Event "Grand Prix Romania 1st Stage 2024"]
[Site "Bucuresti"]
[Date "2024.03.23"]
[Round "3.17"]
[White "Stefan, Romulus-Cristian"]
[Black "Gavrilescu, David"]
[Result "0-1"]
[ECO "D02"]
[WhiteElo "2171"]
[BlackElo "2524"]
[Annotator "TA"]
[PlyCount "48"]
[EventDate "2024.03.20"]
[EventType "swiss"]
[EventCountry "ROU"]
[SourceTitle "playchess.com"]
[Source "ChessBase"]
[SourceQuality "1"]
[TimeControl "900+5"]

{[%evp 11,48,2,20,19,31,18,23,4,8,15,10,10,10,-7,1,-10,27,0,0,0,0,-86,-100,-167,-181,-224,-206,-306,-307,-302,-302,-319,-321,-311,-325,-379,-372,-480,-471]} 1. d4 {[%emt 0:00:01]} d5 {[%emt 0:00:01]} 2. Nf3 {[%emt 0:00:04]} Nf6 {[%emt 0:00:02]} 3. Bf4 {[%emt 0:00:03]} c5 {[%emt 0:00:02]} 4. e3 {[%emt 0:00:01]} Nc6 {[%emt 0:00:02]} 5. Nbd2 {[%emt 0:00:01]} e6 {[%emt 0:00:12]} 6. c3 {[%emt 0:00:03]} cxd4 {[%emt 0:00:01]} 7. exd4 {[%emt 0:00:01]} Nh5 {[%emt 0:00:02]} 8. Be3 {[%emt 0:00:01]} Bd6 {[%emt 0:00:01]} 9. Bd3 {[%emt 0:00:04] White has an edge.} Nf4 {[%emt 0:00:01]} 10. Bxf4 {[%emt 0:00:01]} Bxf4 {[%emt 0:00:02]} 11. O-O {[%emt 0:00:02]} O-O {[%emt 0:00:03]} 12. Qe2 {[%emt 0:00:02]} Qc7 {[%emt 0:00:27]} 13. Nb3 {[%emt 0:00:04]} b6 {[%emt 0:00:21]} 14. a4 {[%emt 0:00:04]} Bd7 {[%emt 0:00:03]} 15. Rfe1 {[%emt 0:00:04]} f6 {[%emt 0:00:10]} 16. c4 {[%emt 0:00:32]} (16. a5 $11) 16... Nb4 $17 {[%emt 0:00:10] Strongly threatening ...Nxd3.} 17. c5 {[%emt 0:00:34] [#]} (17. Nbd2 $17) 17... e5 $1 $19 {[%emt 0:02:35][%mdl 512]} 18. Bb5 {[%emt 0:04:55]} (18. dxe5 fxe5) 18... e4 {[%emt 0:00:20]} 19. Bxd7 {[%emt 0:00:30]} (19. Nfd2 $142 Bxb5 (19... Bxh2+ 20. Kh1 $11) 20. axb5) 19... Qxd7 {[%emt 0:00:02]} 20. Nfd2 {[%emt 0:00:02]} Nc2 $1 {[%emt 0:00:06][%csl LRa1,LRe1]} 21. Nf1 {[%emt 0:00:06]} Nxe1 {[%emt 0:00:15]} 22. Qxe1 {[%emt 0:00:03]} Rab8 {[%emt 0:00:21]} 23. g3 {[%emt 0:00:15]} Bc7 {[%emt 0:00:02]} 24. Ne3 {[%emt 0:00:03]} f5 {[%emt 0:00:05] Weighted Error Value: White=0.38/Black=0.04 (flawless) .  Mistake:       	White=3     	---        Inaccurate:     	White=1     	Black=1      OK:         	White=2     	Black=7      Best:        	---       	Black=3      Brilliant:      	---       	Black=1} 0-1

[Event "Grand Prix Romania 1st Stage 2024"]
[Site "Bucuresti"]
[Date "2024.03.23"]
[Round "3.18"]
[White "Lupulescu, Constantin"]
[Black "Padurean, Daniel-Cristian"]
[Result "1-0"]
[ECO "D07"]
[WhiteElo "2579"]
[BlackElo "2115"]
[Annotator "TA"]
[PlyCount "107"]
[EventDate "2024.03.20"]
[EventType "swiss"]
[EventCountry "ROU"]
[SourceTitle "playchess.com"]
[Source "ChessBase"]
[SourceQuality "1"]
[TimeControl "900+5"]

{[%evp 14,107,109,110,121,124,212,211,224,195,219,181,264,281,270,291,486,217,219,218,227,214,220,218,244,241,329,319,326,200,202,200,313,315,395,322,320,232,219,224,236,231,234,235,236,223,228,226,230,195,202,202,237,237,237,230,287,220,287,287,287,287,460,453,435,432,432,430,592,580,528,517,744,556,611,583,866,883,921,906,1222,1202,4727,706,938,1045,1050,908,791,769,983,954,1497,1429,5720,5461]} 1. d4 {[%emt 0:00:02]} Nc6 {[%emt 0:00:03]} 2. Nf3 {[%emt 0:00:16]} d5 {[%emt 0:00:09]} 3. c4 {[%emt 0:00:03]} Bg4 {[%emt 0:00:22]} 4. Nc3 {[%emt 0:00:54]} Nf6 {[%emt 0:02:39][%cal Bg8f6,Bf6d5,Bd5c3][%mdl 32]} 5. cxd5 {[%emt 0:02:09]} Nxd5 {[%emt 0:00:16]} 6. e4 {[%emt 0:00:08]} Nxc3 {[%emt 0:01:36]} 7. bxc3 {[%emt 0:00:02]} e5 {[%emt 0:00:10] [#]} 8. d5 $1 {[%emt 0:01:24]} (8. dxe5 Qxd1+ 9. Kxd1 O-O-O+ (9... Nxe5 10. Be2 $11) 10. Kc2 Bc5 $15) 8... Ne7 {[%emt 0:00:01]} 9. Qb3 {[%emt 0:01:48]} Bxf3 {[%emt 0:00:24]} (9... Ng6 $16) 10. gxf3 $18 {[%emt 0:00:02]} Qc8 {[%emt 0:00:58] White is clearly better.} 11. Rb1 {[%emt 0:01:48][%cal Oh2h4]} b6 {[%emt 0:01:24]} 12. Bb5+ {[%emt 0:00:39]} Kd8 {[%emt 0:00:02] [#]} (12... c6 $142) 13. d6 $1 {[%emt 0:00:13][%mdl 512]} cxd6 {[%emt 0:01:31]} 14. Qxf7 {[%emt 0:00:03]} Ng6 $2 {[%emt 0:00:46] Black is weak on the light squares} (14... a6) 15. Qe8+ {[%emt 0:02:14]} (15. O-O $142 Be7 16. Rd1 (16. Qxg7 Qh3 $11)) 15... Kc7 {[%emt 0:00:01]} 16. Qc6+ {[%emt 0:00:01]} Kb8 {[%emt 0:00:26]} 17. a4 {[%emt 0:00:52][%cal Ba2a4,Ba4a5][%mdl 32]} Be7 {[%emt 0:01:48] [#]} 18. a5 $1 {[%emt 0:00:03][%mdl 512]} Qc7 {[%emt 0:00:38]} (18... Qxc6 19. Bxc6) 19. O-O {[%emt 0:02:02]} (19. axb6 axb6 20. Be3 (20. Qxc7+ Kxc7 21. Rg1 Bf6 $11) 20... Qxc6 21. Bxc6 Ra6 $16) 19... Rc8 {[%emt 0:01:06]} 20. Qd5 {[%emt 0:00:01]} Qb7 {[%emt 0:02:14] Repels Ba6} 21. Be3 {[%emt 0:00:38] Threatens to win with Qb3.} Qxd5 {[%emt 0:00:07]} 22. exd5 {[%emt 0:00:02]} Kc7 {[%emt 0:00:02]} (22... Bd8 $142 23. Bc6 Rxc6 24. dxc6 Nf4) 23. Bc6 {[%emt 0:00:50] A strong pair of Bishops.} Rab8 {[%emt 0:00:01]} 24. axb6+ {[%emt 0:00:20]} axb6 {[%emt 0:00:01]} 25. Ra1 {[%emt 0:00:00]} Kd8 {[%emt 0:00:12]} 26. Rfb1 {[%emt 0:00:05]} Rxc6 {[%emt 0:00:01]} 27. dxc6 {[%emt 0:00:03]} Kc7 {[%emt 0:00:00]} 28. Ra6 {[%emt 0:00:13][%cal Re3b6]} Kxc6 {[%emt 0:00:20]} 29. Raxb6+ {[%emt 0:00:02]} ({Don't do} 29. Rbxb6+ Rxb6 30. Rxb6+ Kc7) 29... Rxb6 {[%emt 0:00:00]} 30. Rxb6+ {[%emt 0:00:01][%mdl 4096] Endgame. KRB-KBN} Kd5 {[%emt 0:00:01]} 31. Rb4 {[%emt 0:00:06]} Ke6 {[%emt 0:00:11]} 32. Kf1 {[%emt 0:00:02]} Bf6 {[%emt 0:00:05]} 33. c4 {[%emt 0:00:10]} Be7 {[%emt 0:00:07]} 34. Ke2 {[%emt 0:00:05]} Kd7 {[%emt 0:00:03]} 35. Rb5 {[%emt 0:00:10]} Kc6 {[%emt 0:00:04]} 36. Kd3 {[%emt 0:00:02]} Nf8 {[%emt 0:00:07]} 37. Ra5 {[%emt 0:00:08]} Ne6 $2 {[%emt 0:00:03]} (37... Kd7 38. f4 exf4) 38. Ra6+ {[%emt 0:00:03] White is clearly winning.} Kd7 {[%emt 0:00:06][%cal Bc6d7,Bd7e8,Be8f7,Bf7f6,Bf6g6][%mdl 32]} 39. Ra7+ {[%emt 0:00:01]} Ke8 {[%emt 0:00:00]} 40. Ke4 {[%emt 0:00:04]} Kf7 {[%emt 0:00:07]} 41. f4 {[%emt 0:00:14]} exf4 {[%emt 0:00:04]} 42. Bxf4 {[%emt 0:00:01]} Kf6 {[%emt 0:00:11]} 43. Be3 {[%emt 0:00:05]} g5 {[%emt 0:00:06]} 44. h3 {[%emt 0:00:09]} h5 {[%emt 0:00:01]} 45. f3 {[%emt 0:00:01]} Bd8 {[%emt 0:00:08]} 46. Rh7 {[%emt 0:00:18]} Kg6 {[%emt 0:00:06]} 47. Rd7 {[%emt 0:00:02]} Bc7 {[%emt 0:00:05]} 48. Bf2 {[%emt 0:00:08]} (48. Kd5 $142 Kf6 49. Bc1 (49. Bd2 Nc5 $18)) 48... Kf6 {[%emt 0:00:02]} 49. Kd5 {[%emt 0:00:08]} Nf4+ {[%emt 0:00:07]} 50. Kc6 {[%emt 0:00:05]} Ba5 {[%emt 0:00:04]} 51. h4 {[%emt 0:00:02]} Bb4 {[%emt 0:00:03]} 52. Bg3 {[%emt 0:00:05] Hoping for Bxf4.} Ne6 {[%emt 0:00:08]} 53. Bxd6 {[%emt 0:00:04]} Nd4+ {[%emt 0:00:04]} 54. Kd5 {[%emt 0:00:01] Black got outplayed after the opening.   Weighted Error Value: White=0.36/Black=0.45.  Mistake:       	White=1     	Black=5      Inaccurate:     	White=1     	Black=5      OK:         	White=17    	Black=8      Best:        	White=2     	Black=4} 1-0